[Event "Late-Titled-Tuesday-Blitz-September-12-2023"]
[Site "Chess.com"]
[Date "2023.09.12"]
[Round "9"]
[White "ZuraTqebuchava"]
[Black "Vyacheslav_N"]
[Result "1/2-1/2"]
[WhiteElo "2285"]
[BlackElo "2472"]
[TimeControl "180+1"]
[EndTime "15:40:24 PDT"]
[Termination "Game drawn by agreement"]

1. e4 {[%clk 0:03:00]} 1... c5 {[%clk 0:02:59.6]} 2. Nf3 {[%clk 0:02:59.8]} 2...
Nc6 {[%clk 0:02:59.6]} 3. Bb5 {[%clk 0:02:59.4]} 3... g6 {[%clk 0:02:58.4]} 4.
O-O {[%clk 0:02:57.9]} 4... Bg7 {[%clk 0:02:58.8]} 5. Bxc6 {[%clk 0:02:57.5]}
5... dxc6 {[%clk 0:02:59]} 6. h3 {[%clk 0:02:57.8]} 6... Nf6 {[%clk 0:02:58.8]}
7. Nc3 {[%clk 0:02:57.3]} 7... Nd7 {[%clk 0:02:57.8]} 8. d3 {[%clk 0:02:55.8]}
8... O-O {[%clk 0:02:57.9]} 9. Be3 {[%clk 0:02:46.5]} 9... b6 {[%clk 0:02:51.5]}
10. Qd2 {[%clk 0:02:42.4]} 10... e5 {[%clk 0:02:51.1]} 11. Nh2 {[%clk
0:02:41.8]} 11... f5 {[%clk 0:02:49.9]} 12. f4 {[%clk 0:02:39.8]} 12... Qc7
{[%clk 0:02:46.2]} 13. exf5 {[%clk 0:02:35.3]} 13... Rxf5 {[%clk 0:02:44]} 14.
fxe5 {[%clk 0:02:33.4]} 14... Nxe5 {[%clk 0:02:44.1]} 15. Rxf5 {[%clk
0:02:16.8]} 15... Bxf5 {[%clk 0:02:45]} 16. Bf4 {[%clk 0:02:03.4]} 16... Qd7
{[%clk 0:02:35.8]} 17. Re1 {[%clk 0:01:57.1]} 17... Nf7 {[%clk 0:02:34.9]} 18.
Nf3 {[%clk 0:01:50.6]} 18... Re8 {[%clk 0:02:34.1]} 19. Rxe8+ {[%clk 0:01:45.4]}
19... Qxe8 {[%clk 0:02:35]} 20. Qe1 {[%clk 0:01:35.4]} 20... Qd7 {[%clk
0:02:25.3]} 21. Kh2 {[%clk 0:01:25.5]} 21... h6 {[%clk 0:02:24.1]} 22. Ne5
{[%clk 0:01:18.6]} 22... Nxe5 {[%clk 0:02:20.8]} 23. Bxe5 {[%clk 0:01:18.4]}
23... Qe6 {[%clk 0:02:17.9]} 24. Bg3 {[%clk 0:01:14]} 24... Qd7 {[%clk
0:02:17.5]} 25. Be5 {[%clk 0:01:06.3]} 25... Qe7 {[%clk 0:02:02.1]} 26. Bg3
{[%clk 0:01:05]} 26... Qd8 {[%clk 0:01:54.5]} 27. a3 {[%clk 0:00:55.4]} 27... g5
{[%clk 0:01:52.8]} 28. Be5 {[%clk 0:00:53.3]} 28... Bf8 {[%clk 0:01:46.6]} 29.
Ne4 {[%clk 0:00:46.8]} 29... Bxe4 {[%clk 0:01:46]} 30. Qxe4 {[%clk 0:00:46.4]}
30... Qe8 {[%clk 0:01:46.7]} 31. Bc3 {[%clk 0:00:39.6]} 31... Qxe4 {[%clk
0:01:45.5]} 32. dxe4 {[%clk 0:00:39.6]} 32... Bd6+ {[%clk 0:01:45.2]} 33. Kg1
{[%clk 0:00:39]} 33... Kf7 {[%clk 0:01:44.9]} 34. Kf2 {[%clk 0:00:34.9]} 34...
Ke6 {[%clk 0:01:45.3]} 35. Kf3 {[%clk 0:00:33.7]} 35... h5 {[%clk 0:01:44.7]}
36. g4 {[%clk 0:00:30.3]} 36... h4 {[%clk 0:01:39.6]} 37. b3 {[%clk 0:00:26.3]}
37... c4 {[%clk 0:01:36.7]} 38. a4 {[%clk 0:00:23.8]} 38... cxb3 {[%clk
0:01:33.9]} 39. cxb3 {[%clk 0:00:23.8]} 39... Be5 {[%clk 0:01:34.5]} 40. Bd2
{[%clk 0:00:20.4]} 40... Bf6 {[%clk 0:01:34.4]} 41. Be3 {[%clk 0:00:19.1]} 41...
c5 {[%clk 0:01:34.5]} 42. Bd2 {[%clk 0:00:18.9]} 42... Ke5 {[%clk 0:01:33.8]}
43. Bc3+ {[%clk 0:00:18.7]} 43... Ke6 {[%clk 0:01:33.8]} 44. Bd2 {[%clk
0:00:18.8]} 44... a6 {[%clk 0:01:33.5]} 45. Be3 {[%clk 0:00:17.1]} 45... Kd6
{[%clk 0:01:33.6]} 46. Bd2 {[%clk 0:00:16.4]} 46... b5 {[%clk 0:01:34.1]} 47.
axb5 {[%clk 0:00:16.3]} 47... axb5 {[%clk 0:01:35]} 48. Ke3 {[%clk 0:00:11]}
48... c4 {[%clk 0:01:34]} 49. bxc4 {[%clk 0:00:10.9]} 49... bxc4 {[%clk
0:01:34.9]} 50. Bb4+ {[%clk 0:00:10.8]} 50... Ke6 {[%clk 0:01:33.4]} 51. Bd2
{[%clk 0:00:10]} 51... Be5 {[%clk 0:01:32.7]} 52. Bb4 {[%clk 0:00:09]} 52... Kf6
{[%clk 0:01:30.1]} 53. Ke2 {[%clk 0:00:08.3]} 53... Bd4 {[%clk 0:01:29.5]} 54.
Ba5 {[%clk 0:00:07.8]} 54... Ke5 {[%clk 0:01:28.3]} 55. Bd8 {[%clk 0:00:07.6]}
55... Kxe4 {[%clk 0:01:28.2]} 56. Bxg5 {[%clk 0:00:07.6]} 56... c3 {[%clk
0:01:27.9]} 57. Kd1 {[%clk 0:00:05.6]} 57... Kd3 {[%clk 0:01:27.5]} 58. Bc1
{[%clk 0:00:04.8]} 58... c2+ {[%clk 0:01:25.3]} 59. Ke1 {[%clk 0:00:03.9]} 59...
Be3 {[%clk 0:01:25.5]} 60. Ba3 {[%clk 0:00:01.2]} 60... c1=Q+ {[%clk 0:01:25.4]}
61. Bxc1 {[%clk 0:00:01.2]} 61... Bxc1 {[%clk 0:01:26.2]} 62. Kf2 {[%clk
0:00:01.3]} 62... Bg5 {[%clk 0:01:26.6]} 63. Kf3 {[%clk 0:00:01.3]} 63... Kd4
{[%clk 0:01:25.3]} 64. Kg2 {[%clk 0:00:02.2]} 64... Ke4 {[%clk 0:01:25.6]} 65.
Kf1 {[%clk 0:00:03]} 65... Kf3 {[%clk 0:01:26.3]} 66. Kg1 {[%clk 0:00:03.4]}
66... Kg3 {[%clk 0:01:26.4]} 67. Kh1 {[%clk 0:00:04.3]} 67... Kxh3 {[%clk
0:01:24.3]} 68. Kg1 {[%clk 0:00:05.2]} 68... Kxg4 {[%clk 0:01:24.7]} 69. Kh1
{[%clk 0:00:06.1]} 69... Kg3 {[%clk 0:01:24.4]} 70. Kg1 {[%clk 0:00:07]} 70...
Kf3 {[%clk 0:01:24]} 71. Kh1 {[%clk 0:00:07.9]} 71... Kf2 {[%clk 0:01:24.4]} 72.
Kh2 {[%clk 0:00:08.2]} 72... Bf4+ {[%clk 0:01:24.9]} 73. Kh1 {[%clk 0:00:09.1]}
73... Be3 {[%clk 0:01:19.9]} 74. Kh2 {[%clk 0:00:09.8]} 74... Kf1 {[%clk
0:01:19.5]} 75. Kh1 {[%clk 0:00:10.7]} 75... Bf2 {[%clk 0:01:18.7]} 76. Kh2
{[%clk 0:00:11.6]} 76... Bg3+ {[%clk 0:01:18.7]} 77. Kh1 {[%clk 0:00:12.5]}
77... Bf2 {[%clk 0:01:12.6]} 78. Kh2 {[%clk 0:00:12.7]} 78... Be1 {[%clk
0:01:12.2]} 79. Kh1 {[%clk 0:00:13.6]} 79... Bc3 {[%clk 0:01:12.3]} 80. Kh2
{[%clk 0:00:14.5]} 80... Bd4 {[%clk 0:01:11.3]} 81. Kh1 {[%clk 0:00:15.4]} 81...
Kf2 {[%clk 0:01:10.1]} 82. Kh2 {[%clk 0:00:16.3]} 82... Bf6 {[%clk 0:01:08.9]}
83. Kh1 {[%clk 0:00:17.2]} 83... Kf3 {[%clk 0:01:09.2]} 84. Kh2 {[%clk
0:00:18.1]} 84... Kg4 {[%clk 0:01:09.1]} 85. Kh1 {[%clk 0:00:19]} 85... Kh3
{[%clk 0:01:09]} 86. Kg1 {[%clk 0:00:19.2]} 86... Be5 {[%clk 0:01:09.3]} 87. Kh1
{[%clk 0:00:19.8]} 87... Bg3 {[%clk 0:01:09.6]} 88. Kg1 {[%clk 0:00:20.2]} 88...
Bh2+ {[%clk 0:01:10.4]} 89. Kh1 {[%clk 0:00:21.1]} 89... Be5 {[%clk 0:01:11]}
90. Kg1 {[%clk 0:00:21.4]} 1/2-1/2

[Event "Late-Titled-Tuesday-Blitz-September-12-2023"]
[Site "Chess.com"]
[Date "2023.09.12"]
[Round "9"]
[White "Bilan_Danila"]
[Black "MightyGMpretender"]
[Result "1-0"]
[WhiteElo "2576"]
[BlackElo "2722"]
[TimeControl "180+1"]
[EndTime "15:40:32 PDT"]
[Termination "Bilan_Danila won by checkmate"]

1. d4 {[%clk 0:03:00.9]} 1... Nf6 {[%clk 0:02:55.8]} 2. Nf3 {[%clk 0:03:00.8]}
2... e6 {[%clk 0:02:56.1]} 3. g3 {[%clk 0:02:59.2]} 3... d5 {[%clk 0:02:54.6]}
4. Bg2 {[%clk 0:02:59.3]} 4... Bd6 {[%clk 0:02:55.3]} 5. O-O {[%clk 0:02:59.5]}
5... O-O {[%clk 0:02:55.5]} 6. c4 {[%clk 0:02:59.5]} 6... c6 {[%clk 0:02:56.2]}
7. Qc2 {[%clk 0:02:59]} 7... Ne4 {[%clk 0:02:55.7]} 8. Nfd2 {[%clk 0:02:57.2]}
8... f5 {[%clk 0:02:51.3]} 9. f3 {[%clk 0:02:56.5]} 9... Nxg3 {[%clk 0:02:41.5]}
10. hxg3 {[%clk 0:02:46.4]} 10... Bxg3 {[%clk 0:02:42.4]} 11. f4 {[%clk
0:02:25.9]} 11... Nd7 {[%clk 0:02:42.1]} 12. Nf3 {[%clk 0:02:09.3]} 12... Nf6
{[%clk 0:02:32.7]} 13. e3 {[%clk 0:01:59.4]} 13... Ng4 {[%clk 0:02:23.5]} 14.
Nc3 {[%clk 0:01:38.9]} 14... Rf6 {[%clk 0:02:20.8]} 15. Ne2 {[%clk 0:01:38]}
15... Bf2+ {[%clk 0:01:44]} 16. Rxf2 {[%clk 0:01:36.2]} 16... Nxf2 {[%clk
0:01:44.9]} 17. Kxf2 {[%clk 0:01:37.1]} 17... Bd7 {[%clk 0:01:45.8]} 18. Bd2
{[%clk 0:01:28.7]} 18... Be8 {[%clk 0:01:45.7]} 19. Rh1 {[%clk 0:01:28.4]} 19...
a5 {[%clk 0:01:44.5]} 20. Ne5 {[%clk 0:01:24.2]} 20... h6 {[%clk 0:01:30.9]} 21.
Qd1 {[%clk 0:00:49.7]} 21... Ra7 {[%clk 0:01:27.8]} 22. Ng3 {[%clk 0:00:43.6]}
22... b6 {[%clk 0:01:26.6]} 23. Bf3 {[%clk 0:00:34.7]} 23... a4 {[%clk
0:01:21.6]} 24. Bh5 {[%clk 0:00:33.8]} 24... c5 {[%clk 0:01:16.1]} 25. Bxe8
{[%clk 0:00:30.4]} 25... Qxe8 {[%clk 0:01:17]} 26. cxd5 {[%clk 0:00:29.1]} 26...
exd5 {[%clk 0:01:16.2]} 27. Nh5 {[%clk 0:00:25.4]} 27... Rf8 {[%clk 0:01:13.2]}
28. Qf3 {[%clk 0:00:25.4]} 28... Qe6 {[%clk 0:01:10.9]} 29. Rg1 {[%clk
0:00:23.9]} 29... Kh7 {[%clk 0:00:43.8]} 30. Rg6 {[%clk 0:00:22.6]} 30... Qg8
{[%clk 0:00:44.2]} 31. Rxb6 {[%clk 0:00:13.5]} 31... cxd4 {[%clk 0:00:37.8]} 32.
exd4 {[%clk 0:00:14.4]} 32... Rc7 {[%clk 0:00:36.8]} 33. Bc3 {[%clk 0:00:14.7]}
33... a3 {[%clk 0:00:36.7]} 34. bxa3 {[%clk 0:00:12.9]} 34... Rfc8 {[%clk
0:00:33.1]} 35. Rb3 {[%clk 0:00:11.8]} 35... Qe8 {[%clk 0:00:27.8]} 36. Ng3
{[%clk 0:00:10.5]} 36... Qe6 {[%clk 0:00:20.8]} 37. Ne2 {[%clk 0:00:06.8]} 37...
Ra8 {[%clk 0:00:10.9]} 38. Qd3 {[%clk 0:00:04.3]} 38... Rca7 {[%clk 0:00:10.5]}
39. Bb4 {[%clk 0:00:04]} 39... Rc7 {[%clk 0:00:11.1]} 40. Bc5 {[%clk 0:00:04.2]}
40... g5 {[%clk 0:00:10.2]} 41. Rb6 {[%clk 0:00:04.4]} 41... Qg8 {[%clk
0:00:08.8]} 42. fxg5 {[%clk 0:00:04.9]} 42... Rf8 {[%clk 0:00:08]} 43. g6+
{[%clk 0:00:04.6]} 43... Kg7 {[%clk 0:00:07.7]} 44. Nf4 {[%clk 0:00:03.5]} 44...
Rf6 {[%clk 0:00:07.3]} 45. Rxf6 {[%clk 0:00:02.6]} 45... Kxf6 {[%clk 0:00:08.2]}
46. Nh5+ {[%clk 0:00:02.7]} 46... Ke6 {[%clk 0:00:07.4]} 47. Qf3 {[%clk
0:00:02.4]} 47... Qb8 {[%clk 0:00:07.4]} 48. Nf4+ {[%clk 0:00:03]} 48... Kf6
{[%clk 0:00:07.1]} 49. Qxd5 {[%clk 0:00:02.5]} 49... Qb2+ {[%clk 0:00:06.9]} 50.
Ne2 {[%clk 0:00:03.4]} 50... Rb7 {[%clk 0:00:05.6]} 51. Qd8+ {[%clk 0:00:03.6]}
51... Ke6 {[%clk 0:00:05.9]} 52. Qe8+ {[%clk 0:00:02.7]} 52... Kd5 {[%clk
0:00:06.3]} 53. Qg8+ {[%clk 0:00:01.8]} 53... Ke4 {[%clk 0:00:06.4]} 54. Qe6
{[%clk 0:00:01.9]} 54... Qxa2 {[%clk 0:00:05.8]} 55. Qxa2 {[%clk 0:00:01.7]}
55... Rb2 {[%clk 0:00:05]} 56. Qxb2 {[%clk 0:00:02.1]} 56... f4 {[%clk
0:00:05.9]} 57. Qc2+ {[%clk 0:00:02.8]} 57... Kd5 {[%clk 0:00:06.2]} 58. g7
{[%clk 0:00:03.7]} 58... f3 {[%clk 0:00:07.1]} 59. Qc4+ {[%clk 0:00:04.4]} 59...
Ke4 {[%clk 0:00:07.1]} 60. Nd3 {[%clk 0:00:05.3]} 60... fxe2 {[%clk 0:00:07.3]}
61. Kxe2 {[%clk 0:00:06.2]} 61... Kf5 {[%clk 0:00:07.5]} 62. g8=Q {[%clk
0:00:06.7]} 62... h5 {[%clk 0:00:08.4]} 63. Qce6# {[%clk 0:00:07.1]} 1-0

[Event "Late-Titled-Tuesday-Blitz-September-12-2023"]
[Site "Chess.com"]
[Date "2023.09.12"]
[Round "9"]
[White "MagnusCarlsen"]
[Black "FairChess_on_YouTube"]
[Result "0-1"]
[WhiteElo "3216"]
[BlackElo "3079"]
[TimeControl "180+1"]
[EndTime "15:40:34 PDT"]
[Termination "FairChess_on_YouTube won on time"]

1. e4 {[%clk 0:03:00.9]} 1... e5 {[%clk 0:02:59.3]} 2. Nf3 {[%clk 0:03:00.7]}
2... Nc6 {[%clk 0:02:59.9]} 3. Bb5 {[%clk 0:03:01]} 3... f5 {[%clk 0:02:59.7]}
4. Nc3 {[%clk 0:02:55.5]} 4... fxe4 {[%clk 0:02:58.3]} 5. Nxe4 {[%clk
0:02:56.4]} 5... Nf6 {[%clk 0:02:57.9]} 6. Qe2 {[%clk 0:02:57.1]} 6... d5 {[%clk
0:02:53.4]} 7. Nxf6+ {[%clk 0:02:57.7]} 7... gxf6 {[%clk 0:02:53.5]} 8. O-O
{[%clk 0:02:58.4]} 8... Bg4 {[%clk 0:02:51]} 9. h3 {[%clk 0:02:58.4]} 9... Bh5
{[%clk 0:02:51.3]} 10. g4 {[%clk 0:02:57.4]} 10... Bd6 {[%clk 0:02:51.5]} 11. d4
{[%clk 0:02:50.7]} 11... e4 {[%clk 0:02:50.5]} 12. Nh4 {[%clk 0:02:49.3]} 12...
Qd7 {[%clk 0:02:48.2]} 13. c4 {[%clk 0:02:44.4]} 13... Bf7 {[%clk 0:02:29.1]}
14. Nf5 {[%clk 0:02:32.5]} 14... O-O-O {[%clk 0:02:22.6]} 15. c5 {[%clk
0:02:28.6]} 15... Bf8 {[%clk 0:02:21.4]} 16. Bh6 {[%clk 0:01:59.5]} 16... Be6
{[%clk 0:01:58.4]} 17. Bxf8 {[%clk 0:01:49.1]} 17... Bxf5 {[%clk 0:01:57.8]} 18.
Bxc6 {[%clk 0:01:41.2]} 18... bxc6 {[%clk 0:01:52.4]} 19. Bh6 {[%clk 0:01:37.5]}
19... Rdg8 {[%clk 0:01:49.6]} 20. f3 {[%clk 0:01:28.1]} 20... Rg6 {[%clk
0:01:37.4]} 21. Bf4 {[%clk 0:01:25.7]} 21... h5 {[%clk 0:01:22.7]} 22. Kf2
{[%clk 0:01:22.7]} 22... hxg4 {[%clk 0:01:19.6]} 23. fxg4 {[%clk 0:01:14.9]}
23... Rxh3 {[%clk 0:01:03.8]} 24. gxf5 {[%clk 0:00:43.2]} 24... Qxf5 {[%clk
0:01:04.7]} 25. Ke1 {[%clk 0:00:43.8]} 25... Rf3 {[%clk 0:01:00.3]} 26. Be3
{[%clk 0:00:41.3]} 26... Qh3 {[%clk 0:00:42.2]} 27. Rxf3 {[%clk 0:00:41.1]}
27... exf3 {[%clk 0:00:41.8]} 28. Qa6+ {[%clk 0:00:35.8]} 28... Kd7 {[%clk
0:00:40.9]} 29. Kd2 {[%clk 0:00:35.5]} 29... Rg2+ {[%clk 0:00:34.5]} 30. Kc3
{[%clk 0:00:35.7]} 30... f2 {[%clk 0:00:21.2]} 31. Qd3 {[%clk 0:00:34.4]} 31...
Rg3 {[%clk 0:00:21.4]} 32. Kd2 {[%clk 0:00:34.6]} 32... Rxe3 {[%clk 0:00:14.6]}
33. Qxe3 {[%clk 0:00:34.8]} 33... f1=Q {[%clk 0:00:15.2]} 34. Rxf1 {[%clk
0:00:35.2]} 34... Qxf1 {[%clk 0:00:16.1]} 35. Qg3 {[%clk 0:00:32.3]} 35... Kc8
{[%clk 0:00:11.5]} 36. Qg8+ {[%clk 0:00:22.2]} 36... Kb7 {[%clk 0:00:11.7]} 37.
Qg3 {[%clk 0:00:23.1]} 37... f5 {[%clk 0:00:10.2]} 38. Qb3+ {[%clk 0:00:21.2]}
38... Kc8 {[%clk 0:00:10.1]} 39. Qa4 {[%clk 0:00:21.6]} 39... Qf2+ {[%clk
0:00:06.1]} 40. Kd3 {[%clk 0:00:21.3]} 40... Kd7 {[%clk 0:00:05.3]} 41. Qxa7
{[%clk 0:00:21.3]} 41... Qxb2 {[%clk 0:00:05.4]} 42. Qa8 {[%clk 0:00:21.7]}
42... Qb1+ {[%clk 0:00:05.1]} 43. Kd2 {[%clk 0:00:19.2]} 43... Qe4 {[%clk
0:00:05.6]} 44. Qh8 {[%clk 0:00:18.5]} 44... f4 {[%clk 0:00:05.1]} 45. Qf6
{[%clk 0:00:13.9]} 45... f3 {[%clk 0:00:03.9]} 46. a4 {[%clk 0:00:12.4]} 46...
Qe2+ {[%clk 0:00:02.7]} 47. Kc3 {[%clk 0:00:12.6]} 47... Qc4+ {[%clk 0:00:01.2]}
48. Kd2 {[%clk 0:00:11.4]} 48... Qb4+ {[%clk 0:00:01.8]} 49. Kd3 {[%clk
0:00:07]} 49... Qb3+ {[%clk 0:00:02.1]} 50. Kd2 {[%clk 0:00:07.3]} 50... Qb2+
{[%clk 0:00:02.6]} 51. Kd3 {[%clk 0:00:07.6]} 51... Qe2+ {[%clk 0:00:02.8]} 52.
Kc3 {[%clk 0:00:08]} 52... Kc8 {[%clk 0:00:03.4]} 53. Qxc6 {[%clk 0:00:03.5]}
53... Qc4+ {[%clk 0:00:03.7]} 54. Kb2 {[%clk 0:00:03.7]} 54... Qxd4+ {[%clk
0:00:04.6]} 55. Kb3 {[%clk 0:00:03.8]} 55... Qc4+ {[%clk 0:00:04.9]} 56. Kb2
{[%clk 0:00:02.6]} 56... Qe2+ {[%clk 0:00:03.9]} 57. Ka3 {[%clk 0:00:02.3]}
57... Qe3+ {[%clk 0:00:04.2]} 58. Kb4 {[%clk 0:00:02.3]} 58... Qe4+ {[%clk
0:00:04.3]} 59. Ka5 {[%clk 0:00:02]} 59... f2 {[%clk 0:00:04.7]} 60. Ka6 {[%clk
0:00:01.5]} 60... f1=Q+ {[%clk 0:00:04.1]} 61. Ka7 {[%clk 0:00:02.2]} 61... Kd8
{[%clk 0:00:03.5]} 62. a5 {[%clk 0:00:02.4]} 62... Qec4 {[%clk 0:00:03.1]} 63.
Kb8 {[%clk 0:00:01.1]} 63... Qb5+ {[%clk 0:00:03]} 0-1

[Event "Late-Titled-Tuesday-Blitz-September-12-2023"]
[Site "Chess.com"]
[Date "2023.09.12"]
[Round "9"]
[White "ameetghasi100"]
[Black "kacprekt"]
[Result "0-1"]
[WhiteElo "2681"]
[BlackElo "2529"]
[TimeControl "180+1"]
[EndTime "15:40:43 PDT"]
[Termination "kacprekt won by checkmate"]

1. e4 {[%clk 0:03:00.9]} 1... c5 {[%clk 0:02:57.7]} 2. Nf3 {[%clk 0:03:00]} 2...
d6 {[%clk 0:02:55.9]} 3. Nc3 {[%clk 0:02:57.9]} 3... Nf6 {[%clk 0:02:55.1]} 4.
e5 {[%clk 0:02:54.8]} 4... dxe5 {[%clk 0:02:53.9]} 5. Nxe5 {[%clk 0:02:55.7]}
5... Qd6 {[%clk 0:02:49.7]} 6. Bb5+ {[%clk 0:02:53.3]} 6... Nbd7 {[%clk
0:02:46.6]} 7. Qe2 {[%clk 0:02:41.9]} 7... a6 {[%clk 0:02:42.3]} 8. Nc4 {[%clk
0:02:40.9]} 8... Qc7 {[%clk 0:02:38.7]} 9. Bxd7+ {[%clk 0:02:29.9]} 9... Bxd7
{[%clk 0:02:39.6]} 10. a4 {[%clk 0:02:29.5]} 10... b6 {[%clk 0:02:32.6]} 11. d3
{[%clk 0:02:21.8]} 11... e6 {[%clk 0:02:17]} 12. Bg5 {[%clk 0:01:52.4]} 12...
Be7 {[%clk 0:02:16.4]} 13. O-O {[%clk 0:01:39.1]} 13... O-O {[%clk 0:02:13.9]}
14. Ne4 {[%clk 0:01:29.9]} 14... Nd5 {[%clk 0:01:47]} 15. Bxe7 {[%clk
0:01:05.9]} 15... Nxe7 {[%clk 0:01:47.9]} 16. Qh5 {[%clk 0:01:06.5]} 16... Bc6
{[%clk 0:01:23.1]} 17. Nc3 {[%clk 0:00:27.8]} 17... b5 {[%clk 0:01:12.6]} 18.
axb5 {[%clk 0:00:24]} 18... axb5 {[%clk 0:01:13.5]} 19. Rxa8 {[%clk 0:00:21.8]}
19... Bxa8 {[%clk 0:01:08]} 20. Ne3 {[%clk 0:00:21]} 20... b4 {[%clk 0:01:06.3]}
21. Ne4 {[%clk 0:00:20.5]} 21... Bxe4 {[%clk 0:00:54]} 22. dxe4 {[%clk
0:00:21.4]} 22... Ng6 {[%clk 0:00:52.5]} 23. Rd1 {[%clk 0:00:18.6]} 23... Nf4
{[%clk 0:00:50]} 24. Qg5 {[%clk 0:00:13.1]} 24... h6 {[%clk 0:00:45.4]} 25. Qg4
{[%clk 0:00:13.5]} 25... Qe5 {[%clk 0:00:36.2]} 26. g3 {[%clk 0:00:12.2]} 26...
Ng6 {[%clk 0:00:31.2]} 27. b3 {[%clk 0:00:12.3]} 27... h5 {[%clk 0:00:26]} 28.
Qe2 {[%clk 0:00:11.1]} 28... h4 {[%clk 0:00:23.2]} 29. Nc4 {[%clk 0:00:10.5]}
29... Qc3 {[%clk 0:00:19.7]} 30. Rd3 {[%clk 0:00:07.9]} 30... Qa1+ {[%clk
0:00:18.8]} 31. Kg2 {[%clk 0:00:08.3]} 31... Ne5 {[%clk 0:00:10.8]} 32. Nxe5
{[%clk 0:00:07]} 32... Qxe5 {[%clk 0:00:10.6]} 33. Qg4 {[%clk 0:00:07.3]} 33...
hxg3 {[%clk 0:00:09.9]} 34. hxg3 {[%clk 0:00:08.2]} 34... f5 {[%clk 0:00:09.3]}
35. exf5 {[%clk 0:00:08.6]} 35... Rxf5 {[%clk 0:00:06.1]} 36. Re3 {[%clk
0:00:06.6]} 36... Qd5+ {[%clk 0:00:06.1]} 37. Qe4 {[%clk 0:00:06.9]} 37... Qxe4+
{[%clk 0:00:05.4]} 38. Rxe4 {[%clk 0:00:07.8]} 38... Kf7 {[%clk 0:00:05.8]} 39.
f4 {[%clk 0:00:08.4]} 39... Rd5 {[%clk 0:00:06.1]} 40. Kf3 {[%clk 0:00:08]}
40... Rd2 {[%clk 0:00:06.2]} 41. Rc4 {[%clk 0:00:08.2]} 41... Rd5 {[%clk
0:00:06.4]} 42. Ke4 {[%clk 0:00:07.6]} 42... Ke7 {[%clk 0:00:07]} 43. Ke3 {[%clk
0:00:08]} 43... Kd6 {[%clk 0:00:07.4]} 44. Re4 {[%clk 0:00:08]} 44... g6 {[%clk
0:00:07.7]} 45. Kf3 {[%clk 0:00:08]} 45... Rd2 {[%clk 0:00:07.8]} 46. Rc4 {[%clk
0:00:08.2]} 46... Kd5 {[%clk 0:00:06.8]} 47. Kg4 {[%clk 0:00:08.5]} 47... Rd4
{[%clk 0:00:06.4]} 48. Rxd4+ {[%clk 0:00:05.5]} 48... Kxd4 {[%clk 0:00:07.3]}
49. Kg5 {[%clk 0:00:06.1]} 49... Kc3 {[%clk 0:00:08.2]} 50. Kxg6 {[%clk
0:00:04.8]} 50... Kxc2 {[%clk 0:00:08.8]} 51. Kf6 {[%clk 0:00:04]} 51... c4
{[%clk 0:00:09.2]} 52. Kxe6 {[%clk 0:00:04.8]} 52... cxb3 {[%clk 0:00:09.2]} 53.
f5 {[%clk 0:00:05.7]} 53... b2 {[%clk 0:00:09.8]} 54. f6 {[%clk 0:00:06.6]}
54... b1=Q {[%clk 0:00:10.4]} 55. f7 {[%clk 0:00:07.5]} 55... Qe1+ {[%clk
0:00:09.7]} 56. Kd7 {[%clk 0:00:07.3]} 56... Qd2+ {[%clk 0:00:09.5]} 57. Ke7
{[%clk 0:00:07.1]} 57... Qe3+ {[%clk 0:00:09.8]} 58. Kd8 {[%clk 0:00:06.8]}
58... Qd4+ {[%clk 0:00:09.7]} 59. Ke7 {[%clk 0:00:07.1]} 59... Qe5+ {[%clk
0:00:10.1]} 60. Kd7 {[%clk 0:00:07.5]} 60... Qf6 {[%clk 0:00:08.3]} 61. Ke8
{[%clk 0:00:08]} 61... Qe6+ {[%clk 0:00:08.8]} 62. Kf8 {[%clk 0:00:08.5]} 62...
b3 {[%clk 0:00:09]} 63. Kg7 {[%clk 0:00:08.5]} 63... Qg4+ {[%clk 0:00:08.8]} 64.
Kf6 {[%clk 0:00:08.3]} 64... Qf3+ {[%clk 0:00:08.2]} 65. Ke7 {[%clk 0:00:08.6]}
65... Qe3+ {[%clk 0:00:08]} 66. Kf8 {[%clk 0:00:09]} 66... b2 {[%clk 0:00:07.6]}
67. Kg7 {[%clk 0:00:09.9]} 67... Qxg3+ {[%clk 0:00:07.5]} 68. Kh8 {[%clk
0:00:10.1]} 68... Qh4+ {[%clk 0:00:07]} 69. Kg7 {[%clk 0:00:10.3]} 69... Qg5+
{[%clk 0:00:07.3]} 70. Kh8 {[%clk 0:00:11.2]} 70... Qf6+ {[%clk 0:00:07]} 71.
Kh7 {[%clk 0:00:11.6]} 71... Qxf7+ {[%clk 0:00:06]} 72. Kh8 {[%clk 0:00:11.9]}
72... Qe7 {[%clk 0:00:05.6]} 73. Kg8 {[%clk 0:00:12.3]} 73... b1=Q {[%clk
0:00:05.7]} 74. Kh8 {[%clk 0:00:13.2]} 74... Qb8# {[%clk 0:00:06.2]} 0-1